[Event "POL-chT DMP Ekstraliga 2019"]
[Site "Katowice"]
[Date "2019.08.30"]
[Round "3.24"]
[White "Zawadzka, Jolanta"]
[Black "Bartel, Marta"]
[Result "1-0"]
[ECO "B66"]
[WhiteElo "2407"]
[BlackElo "2244"]
[Annotator "NA"]
[PlyCount "53"]
[EventDate "2019.08.28"]
[EventType "team-tourn"]
[EventCountry "POL"]
[SourceTitle "playchess.com"]
[Source "ChessBase"]
[SourceQuality "1"]
[TimeControl "40/5400+30:1800+30"]

1. e4 {[%emt 0:01:26]} c5 {[%emt 0:00:00]} 2. Nf3 {[%emt 0:00:08]} Nc6 {[%emt 0:00:00]} 3. d4 {[%emt 0:00:06]} cxd4 {[%emt 0:00:00]} 4. Nxd4 {[%emt 0:00:05]} Nf6 {[%emt 0:00:02]} 5. Nc3 {[%emt 0:00:07]} d6 {[%emt 0:00:04]} 6. Bg5 {[%emt 0:00:13]} e6 {[%emt 0:00:13]} 7. Qd2 {[%emt 0:00:38]} a6 {[%emt 0:00:11]} 8. O-O-O {[%emt 0:00:45]} h6 {[%emt 0:00:06]} 9. Nxc6 {[%emt 0:06:40]} bxc6 {[%emt 0:00:05]} 10. Bf4 {[%emt 0:00:02]} d5 {[%emt 0:00:12]} 11. Qe3 {[%emt 0:08:50]} Bb4 {[%emt 0:00:19]} 12. a3 {[%emt 0:03:31]} Ba5 {[%emt 0:03:07]} 13. h4 {[%emt 0:04:30]} O-O {[%emt 0:18:05]} 14. e5 {[%emt 0:07:53]} Bb6 {[%emt 0:03:41]} 15. Qe2 {[%emt 0:15:24]} Nd7 {[%emt 0:02:51]} 16. g4 {[%emt 0:00:36]} f6 {[%emt 0:20:54]} 17. exf6 {[%emt 0:01:41]} Qxf6 {[%emt 0:13:42]} 18. Bg3 {[%emt 0:07:38]} e5 {[%emt 0:09:50]} 19. Bg2 {[%emt 0:04:23]} e4 {[%emt 0:04:06]} 20. g5 {[%emt 0:16:26]} hxg5 {[%emt 0:01:10]} 21. Nxe4 {[%emt 0:00:57]} dxe4 {[%emt 0:09:45]} 22. Rd6 {[%emt 0:00:58]} Qe7 {[%emt 0:03:56]} 23. Bxe4 {[%emt 0:01:51]} Rf7 {[%emt 0:02:30]} 24. Re6 {[%emt 0:02:32]} Qc5 {[%emt 0:04:17]} 25. Rxc6 {[%emt 0:04:46]} Qa5 {[%emt 0:02:00]} 26. Re6 {[%emt 0:05:01]} Nf8 {[%emt 0:01:05]} 27. Re5 {[%emt 0:00:37]} 1-0

[Event "POL-chT DMP Ekstraliga 2019"]
[Site "Katowice"]
[Date "2019.08.30"]
[Round "3.27"]
[White "Piesik, Piotr"]
[Black "Kanarek, Marcel"]
[Result "1/2-1/2"]
[ECO "A05"]
[WhiteElo "2409"]
[BlackElo "2493"]
[Annotator "ChessBase"]
[PlyCount "106"]
[EventDate "2019.08.28"]
[EventType "team-tourn"]
[EventCountry "POL"]
[SourceTitle "playchess.com"]
[Source "ChessBase"]
[SourceQuality "1"]
[TimeControl "40/5400+30:1800+30"]

1. Nf3 {[%emt 0:00:53]} Nf6 {[%emt 0:00:00]} 2. g3 {[%emt 0:00:14]} g6 {[%emt 0:00:00]} 3. b3 {[%emt 0:00:13]} Bg7 {[%emt 0:01:05]} 4. Bb2 {[%emt 0:00:07]} O-O {[%emt 0:01:23]} 5. Bg2 {[%emt 0:00:06]} d6 {[%emt 0:04:13]} 6. d4 {[%emt 0:00:26]} e5 {[%emt 0:17:48]} 7. dxe5 {[%emt 0:00:48]} Ng4 {[%emt 0:00:33]} 8. Nc3 {[%emt 0:02:06]} Nxe5 {[%emt 0:02:24]} 9. Qd2 {[%emt 0:02:10]} Nxf3+ {[%emt 0:19:05]} 10. Bxf3 {[%emt 0:00:49]} c6 {[%emt 0:00:06]} 11. O-O-O {[%emt 0:07:28]} d5 {[%emt 0:03:30]} 12. e4 {[%emt 0:07:31]} Qf6 {[%emt 0:19:31]} 13. Bg2 {[%emt 0:01:52]} d4 {[%emt 0:09:59]} 14. Na4 {[%emt 0:03:03]} Rd8 {[%emt 0:00:38]} 15. c3 {[%emt 0:08:10]} c5 {[%emt 0:01:00]} 16. Nxc5 {[%emt 0:18:13]} Qc6 {[%emt 0:00:18]} 17. cxd4 {[%emt 0:00:19]} b6 {[%emt 0:02:16]} 18. Rhg1 {[%emt 0:00:24]} bxc5 {[%emt 0:07:06]} 19. e5 {[%emt 0:00:10]} Rd5 {[%emt 0:05:50]} 20. Bxd5 {[%emt 0:16:11]} Qxd5 {[%emt 0:00:01]} 21. Qc3 {[%emt 0:03:06]} Nc6 {[%emt 0:02:33]} 22. dxc5 {[%emt 0:02:03]} Qe4 {[%emt 0:00:15]} 23. Rge1 {[%emt 0:03:15]} Qg2 {[%emt 0:00:09]} 24. Rd2 {[%emt 0:03:20]} Bf5 {[%emt 0:01:17]} 25. f4 {[%emt 0:01:11]} Qh3 {[%emt 0:00:06]} 26. Qf3 {[%emt 0:00:58]} Rc8 {[%emt 0:00:36]} 27. Bc3 {[%emt 0:00:42]} Bf8 {[%emt 0:00:56]} 28. Qe3 {[%emt 0:00:30]} a5 {[%emt 0:00:31]} 29. Kb2 {[%emt 0:01:18]} Be7 {[%emt 0:00:37]} 30. Rc1 {[%emt 0:03:03]} Be6 {[%emt 0:00:04]} 31. Ka1 {[%emt 0:04:05]} Qf5 {[%emt 0:00:45]} 32. Bb2 {[%emt 0:01:43]} a4 {[%emt 0:00:24]} 33. bxa4 {[%emt 0:01:27]} Ra8 {[%emt 0:00:19]} 34. g4 {[%emt 0:00:51]} Qxg4 {[%emt 0:00:30]} 35. Qe4 {[%emt 0:00:13]} Rc8 {[%emt 0:01:09]} 36. a5 {[%emt 0:00:42]} Nxa5 {[%emt 0:00:27]} 37. c6 {[%emt 0:00:36]} Nb3+ {[%emt 0:00:32]} 38. axb3 {[%emt 0:00:26]} Ra8+ {[%emt 0:00:05]} 39. Ba3 {[%emt 0:00:58]} Rxa3+ {[%emt 0:00:53]} 40. Ra2 {[%emt 0:00:00]} Qh3 {[%emt 0:00:00]} 41. Qc2 {[%emt 0:03:48]} Bf5 {[%emt 0:23:09]} 42. Qc3 {[%emt 0:08:58]} Rxa2+ {[%emt 0:02:31]} 43. Kxa2 {[%emt 0:00:06]} Qxh2+ {[%emt 0:00:26]} 44. Qb2 {[%emt 0:01:37]} Qxf4 {[%emt 0:02:28]} 45. c7 {[%emt 0:00:05]} Bc8 {[%emt 0:01:26]} 46. Rd1 {[%emt 0:02:22]} Kg7 {[%emt 0:00:43]} 47. Rd8 {[%emt 0:01:07]} Qf1 {[%emt 0:01:48]} 48. Rd4 {[%emt 0:08:01]} Qa6+ {[%emt 0:00:07]} 49. Ra4 {[%emt 0:00:04]} Qc6 {[%emt 0:00:43]} 50. Rc4 {[%emt 0:02:05]} Qa8+ {[%emt 0:00:16]} 51. Ra4 {[%emt 0:00:06]} Qc6 {[%emt 0:00:14]} 52. Rc4 {[%emt 0:00:35]} Qa8+ {[%emt 0:02:11]} 53. Ra4 {[%emt 0:00:11]} Qc6 {[%emt 0:00:05]} 1/2-1/2

[Event "POL-chT DMP Ekstraliga 2019"]
[Site "Katowice"]
[Date "2019.08.30"]
[Round "3.28"]
[White "Janik, Igor"]
[Black "Simantsev, Mikhail"]
[Result "0-1"]
[ECO "E15"]
[WhiteElo "2483"]
[BlackElo "2346"]
[Annotator "ChessBase"]
[PlyCount "136"]
[EventDate "2019.08.28"]
[EventType "team-tourn"]
[EventCountry "POL"]
[SourceTitle "playchess.com"]
[Source "ChessBase"]
[SourceQuality "1"]
[TimeControl "40/5400+30:1800+30"]

1. d4 {[%emt 0:00:00]} Nf6 {[%emt 0:00:00]} 2. c4 {[%emt 0:00:00]} e6 {[%emt 0:00:00]} 3. Nf3 {[%emt 0:00:00]} b6 {[%emt 0:00:01]} 4. g3 {[%emt 0:00:00]} Ba6 {[%emt 0:00:45]} 5. b3 {[%emt 0:00:06]} Bb4+ {[%emt 0:00:11]} 6. Bd2 {[%emt 0:00:10]} Be7 {[%emt 0:00:01]} 7. Nc3 {[%emt 0:00:09]} d5 {[%emt 0:00:32]} 8. cxd5 {[%emt 0:00:32]} exd5 {[%emt 0:00:01]} 9. Bg2 {[%emt 0:00:14]} O-O {[%emt 0:00:02]} 10. O-O {[%emt 0:00:13]} Re8 {[%emt 0:00:02]} 11. Rc1 {[%emt 0:04:27]} Nbd7 {[%emt 0:01:46]} 12. Ne5 {[%emt 0:03:39]} Bb7 {[%emt 0:00:22]} 13. Bg5 {[%emt 0:03:08]} h6 {[%emt 0:05:30]} 14. Nxd7 {[%emt 0:01:57]} Qxd7 {[%emt 0:25:14]} 15. Bxf6 {[%emt 0:00:08]} Bxf6 {[%emt 0:00:02]} 16. e3 {[%emt 0:00:10]} Be7 {[%emt 0:02:13]} 17. Qh5 {[%emt 0:02:47]} c6 {[%emt 0:08:57]} 18. Rc2 {[%emt 0:05:01]} Bb4 {[%emt 0:02:09]} 19. Ne2 {[%emt 0:04:52]} a5 {[%emt 0:05:39]} 20. a4 {[%emt 0:03:55]} Qe7 {[%emt 0:17:13]} 21. Nf4 {[%emt 0:03:16]} Rac8 {[%emt 0:01:19]} 22. Rfc1 {[%emt 0:03:08]} Ba3 {[%emt 0:07:45]} 23. Rd1 {[%emt 0:01:26]} Bd6 {[%emt 0:00:13]} 24. Qg4 {[%emt 0:02:03]} Rc7 25. Rdc1 {[%emt 0:00:14]} Bc8 {[%emt 0:03:47]} 26. Qh5 {[%emt 0:02:00]} Bb7 {[%emt 0:03:16]} 27. Bf1 {[%emt 0:01:20]} Rcc8 {[%emt 0:06:59]} 28. Qf5 {[%emt 0:05:16]} Rcd8 {[%emt 0:02:44]} 29. Bd3 {[%emt 0:00:51]} g6 {[%emt 0:00:21]} 30. Qh3 {[%emt 0:01:00]} Qg5 {[%emt 0:00:54]} 31. Qg2 {[%emt 0:01:26]} Ba3 {[%emt 0:02:19]} 32. h4 {[%emt 0:01:16]} Qf6 {[%emt 0:00:08]} 33. Ra1 {[%emt 0:00:55]} Bd6 {[%emt 0:00:01]} 34. Ne2 {[%emt 0:00:44]} c5 {[%emt 0:00:24]} 35. Rd1 {[%emt 0:02:06]} Ba8 {[%emt 0:01:06]} 36. Bb5 {[%emt 0:00:15]} Rf8 {[%emt 0:01:01]} 37. Rcd2 {[%emt 0:01:36]} Bb8 {[%emt 0:01:24]} 38. Nc3 {[%emt 0:04:06]} Kg7 {[%emt 0:01:14]} 39. Ne2 {[%emt 0:03:12]} Bd6 {[%emt 0:00:25]} 40. Qh1 {[%emt 0:00:00]} h5 {[%emt 0:00:00]} 41. Qh3 {[%emt 0:05:55]} Bb7 {[%emt 0:04:21]} 42. Qg2 {[%emt 0:02:56]} Ba8 {[%emt 0:02:58]} 43. Rc2 {[%emt 0:01:30]} Rc8 {[%emt 0:03:50]} 44. Bd7 {[%emt 0:03:50]} Rcd8 {[%emt 0:01:09]} 45. Bh3 {[%emt 0:00:13]} Rfe8 {[%emt 0:00:40]} 46. Qf1 {[%emt 0:01:11]} g5 {[%emt 0:02:26]} 47. hxg5 {[%emt 0:02:04]} Qxg5 {[%emt 0:02:58]} 48. Rc3 {[%emt 0:00:43]} Bb7 {[%emt 0:02:20]} 49. Qg2 {[%emt 0:00:53]} Ba6 50. Rc2 {[%emt 0:03:34]} c4 {[%emt 0:13:37]} 51. Rb1 {[%emt 0:03:10]} Qg6 {[%emt 0:00:29]} 52. Rcc1 {[%emt 0:01:36]} cxb3 {[%emt 0:00:24]} 53. Nc3 {[%emt 0:03:01]} Bc4 {[%emt 0:02:32]} 54. Nxd5 {[%emt 0:00:51]} Bd3 {[%emt 0:00:34]} 55. Nf4 {[%emt 0:01:53]} Bxf4 {[%emt 0:00:14]} 56. gxf4 {[%emt 0:00:06]} Bxb1 {[%emt 0:00:04]} 57. Rxb1 {[%emt 0:00:05]} b5 {[%emt 0:00:44]} 58. Rxb3 {[%emt 0:00:25]} b4 {[%emt 0:00:13]} 59. Kf1 {[%emt 0:02:15]} Qxg2+ {[%emt 0:00:38]} 60. Kxg2 {[%emt 0:00:48]} Re7 {[%emt 0:00:12]} 61. Kf3 {[%emt 0:02:10]} Rc7 {[%emt 0:00:04]} 62. Bf1 {[%emt 0:00:28]} Rc2 {[%emt 0:00:35]} 63. Rb1 {[%emt 0:01:17]} Rdc8 {[%emt 0:01:51]} 64. Bb5 {[%emt 0:00:26]} Rc1 {[%emt 0:01:14]} 65. Rb2 {[%emt 0:00:08]} R8c2 {[%emt 0:00:11]} 66. Rb3 {[%emt 0:00:01]} h4 {[%emt 0:00:44]} 67. Kg4 {[%emt 0:01:13]} Rg1+ {[%emt 0:00:19]} 68. Kxh4 {[%emt 0:01:25]} Rc8 {[%emt 0:00:33]} 0-1

[Event "POL-chT DMP Ekstraliga 2019"]
[Site "Katowice"]
[Date "2019.08.30"]
[Round "3.29"]
[White "Szustakowski, Antoni"]
[Black "Tomczak, Mikolaj"]
[Result "1/2-1/2"]
[ECO "D37"]
[WhiteElo "2256"]
[BlackElo "2432"]
[Annotator "NA"]
[PlyCount "41"]
[EventDate "2019.08.28"]
[EventType "team-tourn"]
[EventCountry "POL"]
[SourceTitle "playchess.com"]
[Source "ChessBase"]
[SourceQuality "1"]
[TimeControl "40/5400+30:1800+30"]

1. d4 {[%emt 0:00:00]} d5 {[%emt 0:00:00]} 2. c4 {[%emt 0:00:00]} e6 {[%emt 0:00:00]} 3. Nc3 {[%emt 0:00:00]} Be7 {[%emt 0:00:13]} 4. Nf3 {[%emt 0:01:15]} Nf6 {[%emt 0:00:07]} 5. Bf4 {[%emt 0:02:17]} O-O {[%emt 0:00:16]} 6. e3 {[%emt 0:00:02]} Nbd7 {[%emt 0:03:30]} 7. c5 {[%emt 0:00:10]} Nh5 {[%emt 0:01:07]} 8. Bd3 {[%emt 0:00:50]} Nxf4 {[%emt 0:03:57]} 9. exf4 {[%emt 0:00:19]} c6 {[%emt 0:01:11]} 10. Qc2 {[%emt 0:09:22]} g6 {[%emt 0:06:49]} 11. O-O {[%emt 0:05:18]} b6 {[%emt 0:00:07]} 12. b4 {[%emt 0:00:05]} a5 {[%emt 0:00:11]} 13. a3 {[%emt 0:00:05]} Qc7 {[%emt 0:00:30]} 14. Ne5 {[%emt 0:01:42]} Nxe5 {[%emt 0:01:59]} 15. fxe5 {[%emt 0:04:42]} Ba6 {[%emt 0:00:30]} 16. Na4 {[%emt 0:06:14]} axb4 {[%emt 0:14:26]} 17. Bxa6 {[%emt 0:16:08]} bxc5 {[%emt 0:07:11]} 18. Nxc5 {[%emt 0:09:40]} Bxc5 {[%emt 0:01:11]} 19. Qxc5 {[%emt 0:00:10]} Rxa6 {[%emt 0:00:07]} 20. axb4 {[%emt 0:00:03]} Rb6 {[%emt 0:04:40]} 21. g3 {[%emt 0:09:37]} 1/2-1/2

[Event "POL-chT DMP Ekstraliga 2019"]
[Site "Katowice"]
[Date "2019.08.30"]
[Round "3.30"]
[White "Cyfka, Karina"]
[Black "Antolak, Julia"]
[Result "1-0"]
[ECO "D25"]
[WhiteElo "2413"]
[BlackElo "2240"]
[Annotator "NA"]
[PlyCount "77"]
[EventDate "2019.08.28"]
[EventType "team-tourn"]
[EventCountry "POL"]
[SourceTitle "playchess.com"]
[Source "ChessBase"]
[SourceQuality "1"]
[TimeControl "40/5400+30:1800+30"]

1. d4 {[%emt 0:00:00]} d5 {[%emt 0:00:00]} 2. c4 {[%emt 0:00:30]} dxc4 {[%emt 0:00:00]} 3. Nf3 {[%emt 0:03:31]} Nf6 {[%emt 0:00:03]} 4. e3 {[%emt 0:00:45]} g6 {[%emt 0:00:13]} 5. Bxc4 {[%emt 0:00:57]} Bg7 {[%emt 0:00:07]} 6. O-O {[%emt 0:02:37]} O-O {[%emt 0:00:07]} 7. Nc3 {[%emt 0:01:16]} Nfd7 {[%emt 0:00:12]} 8. e4 {[%emt 0:06:55]} Nb6 {[%emt 0:00:11]} 9. Be2 {[%emt 0:01:58]} Bg4 {[%emt 0:00:20]} 10. Be3 {[%emt 0:04:08]} Nc6 {[%emt 0:00:53]} 11. d5 {[%emt 0:03:25]} Bxf3 {[%emt 0:01:24]} 12. Bxf3 {[%emt 0:02:14]} Ne5 {[%emt 0:00:07]} 13. Be2 {[%emt 0:02:26]} c6 {[%emt 0:00:16]} 14. Qb3 {[%emt 0:01:38]} cxd5 {[%emt 0:08:07]} 15. Nxd5 {[%emt 0:18:20]} Nxd5 {[%emt 0:02:49]} 16. exd5 {[%emt 0:00:05]} b6 {[%emt 0:04:10]} 17. Rac1 {[%emt 0:02:59]} Rc8 {[%emt 0:09:01]} 18. Rxc8 {[%emt 0:03:56]} Qxc8 {[%emt 0:00:07]} 19. h3 {[%emt 0:00:09]} Rd8 {[%emt 0:08:59]} 20. Rc1 {[%emt 0:02:03]} Qb8 {[%emt 0:07:34]} 21. Qb5 {[%emt 0:03:20]} Nd7 {[%emt 0:12:41]} 22. b4 {[%emt 0:03:25]} Nf6 {[%emt 0:05:08]} 23. Bf3 {[%emt 0:00:32]} Qe5 {[%emt 0:02:14]} 24. Qc4 {[%emt 0:01:45]} Ne8 {[%emt 0:09:56]} 25. Qc6 {[%emt 0:04:08]} Qb8 {[%emt 0:08:59]} 26. g3 {[%emt 0:01:17]} Be5 {[%emt 0:00:13]} 27. Kg2 {[%emt 0:00:51]} Ng7 {[%emt 0:02:04]} 28. g4 {[%emt 0:04:19]} Ne8 {[%emt 0:01:05]} 29. Qc4 {[%emt 0:03:17]} Qd6 {[%emt 0:02:09]} 30. a4 {[%emt 0:00:54]} Nf6 {[%emt 0:04:55]} 31. Rd1 {[%emt 0:03:29]} Qd7 {[%emt 0:03:08]} 32. a5 {[%emt 0:00:09]} Rc8 {[%emt 0:01:46]} 33. Qa6 {[%emt 0:04:18]} bxa5 {[%emt 0:01:18]} 34. bxa5 {[%emt 0:00:22]} Bb8 {[%emt 0:00:10]} 35. g5 {[%emt 0:01:58]} Nxd5 {[%emt 0:02:19]} 36. Rxd5 {[%emt 0:03:32]} Qc7 {[%emt 0:00:04]} 37. Bf4 {[%emt 0:01:18]} Qxf4 {[%emt 0:00:36]} 38. Qxc8+ {[%emt 0:00:06]} Kg7 {[%emt 0:00:03]} 39. Qc3+ {[%emt 0:01:08]} 1-0

[Event "POL-chT DMP Ekstraliga 2019"]
[Site "Katowice"]
[Date "2019.08.31"]
[Round "4.3"]
[White "Dziuba, Marcin"]
[Black "Kanarek, Marcel"]
[Result "1-0"]
[ECO "E46"]
[WhiteElo "2568"]
[BlackElo "2493"]
[Annotator "ChessBase"]
[PlyCount "93"]
[EventDate "2019.08.28"]
[EventType "team-tourn"]
[EventCountry "POL"]
[SourceTitle "playchess.com"]
[Source "ChessBase"]
[SourceQuality "1"]
[TimeControl "40/5400+30:1800+30"]

1. d4 {[%emt 0:00:00]} Nf6 {[%emt 0:00:00]} 2. c4 {[%emt 0:00:01]} e6 {[%emt 0:00:00]} 3. Nc3 {[%emt 0:05:15]} Bb4 {[%emt 0:01:30]} 4. e3 {[%emt 0:01:27]} O-O {[%emt 0:00:39]} 5. Nge2 {[%emt 0:01:52]} d5 {[%emt 0:04:57]} 6. a3 {[%emt 0:00:28]} Bd6 {[%emt 0:08:25]} 7. c5 {[%emt 0:01:04]} Be7 {[%emt 0:00:08]} 8. b4 {[%emt 0:00:24]} b6 {[%emt 0:03:04]} 9. Nf4 {[%emt 0:06:19]} a5 {[%emt 0:01:09]} 10. Bb2 {[%emt 0:00:35]} c6 {[%emt 0:06:40]} 11. Be2 {[%emt 0:15:54]} Ba6 {[%emt 0:09:34]} 12. O-O {[%emt 0:01:49]} Bxe2 {[%emt 0:09:52]} 13. Qxe2 {[%emt 0:02:08]} Nbd7 {[%emt 0:04:12]} 14. Nd3 {[%emt 0:14:24]} Qc7 {[%emt 0:06:01]} 15. Rfc1 {[%emt 0:09:53]} Rfb8 {[%emt 0:12:21]} 16. Na4 {[%emt 0:04:43]} axb4 {[%emt 0:01:59]} 17. axb4 {[%emt 0:01:16]} bxc5 {[%emt 0:02:00]} 18. Naxc5 {[%emt 0:06:06]} Nxc5 {[%emt 0:08:05]} 19. bxc5 {[%emt 0:01:24]} Nd7 {[%emt 0:02:22]} 20. h3 {[%emt 0:02:54]} Bf6 {[%emt 0:03:03]} 21. Bc3 {[%emt 0:08:16]} e5 {[%emt 0:03:43]} 22. Qd2 {[%emt 0:00:45]} exd4 {[%emt 0:02:56]} 23. Bxd4 {[%emt 0:00:05]} Qb7 {[%emt 0:01:28]} 24. Qc2 {[%emt 0:02:53]} Rxa1 {[%emt 0:00:56]} 25. Rxa1 {[%emt 0:00:05]} h6 {[%emt 0:00:28]} 26. Qa4 {[%emt 0:05:52]} Bxd4 {[%emt 0:06:05]} 27. exd4 {[%emt 0:01:03]} Qb3 {[%emt 0:00:13]} 28. Qxc6 {[%emt 0:01:06]} Qxd3 {[%emt 0:00:03]} 29. Qxd7 {[%emt 0:00:05]} Qxd4 {[%emt 0:00:10]} 30. Rc1 {[%emt 0:00:03]} Qd2 {[%emt 0:00:43]} 31. Rf1 {[%emt 0:00:36]} d4 {[%emt 0:01:33]} 32. c6 {[%emt 0:00:12]} Qc2 {[%emt 0:00:31]} 33. c7 {[%emt 0:01:53]} Rf8 {[%emt 0:00:09]} 34. Re1 {[%emt 0:00:40]} d3 {[%emt 0:01:27]} 35. Re3 {[%emt 0:00:31]} Qc1+ {[%emt 0:00:31]} 36. Kh2 {[%emt 0:00:05]} d2 {[%emt 0:00:29]} 37. Rd3 {[%emt 0:00:20]} Kh7 {[%emt 0:00:31]} 38. Rxd2 {[%emt 0:00:29]} Qc5 {[%emt 0:00:28]} 39. g3 {[%emt 0:03:09]} f5 {[%emt 0:00:23]} 40. Qd6 {[%emt 0:00:00]} Qxd6 {[%emt 0:00:00]} 41. Rxd6 {[%emt 0:03:04]} Rc8 {[%emt 0:00:46]} 42. Rc6 {[%emt 0:04:11]} Kg8 {[%emt 0:04:57]} 43. Kg2 {[%emt 0:01:40]} Kf7 {[%emt 0:01:18]} 44. Kf3 {[%emt 0:00:20]} Ke7 {[%emt 0:00:34]} 45. Kf4 {[%emt 0:00:21]} Kd7 {[%emt 0:00:18]} 46. Rc2 {[%emt 0:00:36]} Ke6 {[%emt 0:03:46]} 47. h4 {[%emt 0:00:29]} 1-0

[Event "POL-chT DMP Ekstraliga 2019"]
[Site "Katowice"]
[Date "2019.08.31"]
[Round "4.4"]
[White "Janik, Igor"]
[Black "Michalik, Peter"]
[Result "1/2-1/2"]
[ECO "D10"]
[WhiteElo "2483"]
[BlackElo "2573"]
[Annotator "ChessBase"]
[PlyCount "70"]
[EventDate "2019.08.28"]
[EventType "team-tourn"]
[EventCountry "POL"]
[SourceTitle "playchess.com"]
[Source "ChessBase"]
[SourceQuality "1"]
[TimeControl "40/5400+30:1800+30"]

1. d4 {[%emt 0:00:00]} d5 {[%emt 0:00:00]} 2. c4 {[%emt 0:00:00]} c6 {[%emt 0:00:00]} 3. cxd5 {[%emt 0:00:00]} cxd5 {[%emt 0:00:00]} 4. Bf4 {[%emt 0:00:00]} Nf6 {[%emt 0:00:03]} 5. e3 {[%emt 0:00:05]} Nc6 {[%emt 0:00:07]} 6. Nc3 {[%emt 0:00:06]} Bf5 {[%emt 0:00:13]} 7. Qb3 {[%emt 0:00:13]} Na5 {[%emt 0:00:11]} 8. Qa4+ {[%emt 0:00:07]} Bd7 {[%emt 0:00:06]} 9. Qc2 {[%emt 0:00:04]} e6 {[%emt 0:00:15]} 10. Bd3 {[%emt 0:00:05]} Bb4 {[%emt 0:00:38]} 11. Nge2 {[%emt 0:03:31]} Rc8 {[%emt 0:07:59]} 12. O-O {[%emt 0:04:00]} Nc4 {[%emt 0:02:47]} 13. Rfc1 {[%emt 0:10:54]} O-O {[%emt 0:06:31]} 14. Bg5 {[%emt 0:15:17]} h6 {[%emt 0:00:16]} 15. Bxf6 {[%emt 0:00:15]} Qxf6 {[%emt 0:00:07]} 16. Qb3 {[%emt 0:00:27]} Qe7 {[%emt 0:01:43]} 17. a3 {[%emt 0:03:08]} Bd6 {[%emt 0:06:21]} 18. Bxc4 {[%emt 0:02:02]} Rxc4 {[%emt 0:00:06]} 19. Nb5 {[%emt 0:01:35]} Rxc1+ {[%emt 0:05:59]} 20. Rxc1 {[%emt 0:01:14]} Bb8 {[%emt 0:00:06]} 21. Rc2 {[%emt 0:01:32]} Rc8 {[%emt 0:06:55]} 22. Rxc8+ {[%emt 0:00:29]} Bxc8 {[%emt 0:00:07]} 23. Nc1 {[%emt 0:01:14]} a6 {[%emt 0:08:15]} 24. Nc3 {[%emt 0:00:36]} Qc7 {[%emt 0:00:04]} 25. f4 {[%emt 0:00:51]} Qc4 {[%emt 0:01:14]} 26. Kf2 {[%emt 0:01:31]} Qxb3 {[%emt 0:03:51]} 27. Nxb3 {[%emt 0:00:26]} b6 {[%emt 0:00:16]} 28. Nc1 {[%emt 0:01:16]} Bd7 {[%emt 0:00:19]} 29. Nd3 {[%emt 0:00:12]} a5 {[%emt 0:01:23]} 30. a4 {[%emt 0:01:00]} Bd6 {[%emt 0:00:39]} 31. Nb5 {[%emt 0:01:38]} Be7 {[%emt 0:00:08]} 32. b3 {[%emt 0:00:30]} f6 {[%emt 0:00:16]} 33. g4 {[%emt 0:00:16]} Kf7 {[%emt 0:03:11]} 34. Kf3 {[%emt 0:00:24]} Ke8 {[%emt 0:03:09]} 35. Nc3 {[%emt 0:01:08]} Bd6 {[%emt 0:06:41] Ke4} 1/2-1/2

[Event "POL-chT DMP Ekstraliga 2019"]
[Site "Katowice"]
[Date "2019.08.31"]
[Round "4.5"]
[White "Plat, Vojtech"]
[Black "Tomczak, Mikolaj"]
[Result "1/2-1/2"]
[ECO "A34"]
[WhiteElo "2561"]
[BlackElo "2432"]
[Annotator "ChessBase"]
[PlyCount "42"]
[EventDate "2019.08.28"]
[EventType "team-tourn"]
[EventCountry "POL"]
[SourceTitle "playchess.com"]
[Source "ChessBase"]
[SourceQuality "1"]
[TimeControl "40/5400+30:1800+30"]

1. c4 {[%emt 0:00:00]} Nf6 {[%emt 0:00:00]} 2. Nc3 {[%emt 0:00:00]} c5 {[%emt 0:00:23]} 3. g3 {[%emt 0:00:07]} g6 {[%emt 0:00:31]} 4. Bg2 {[%emt 0:00:05]} Bg7 {[%emt 0:00:07]} 5. Nf3 {[%emt 0:00:06]} d5 {[%emt 0:00:35]} 6. cxd5 {[%emt 0:00:13]} Nxd5 {[%emt 0:00:04]} 7. O-O {[%emt 0:02:06]} Nc6 {[%emt 0:00:44]} 8. Qb3 {[%emt 0:01:34]} Nc7 {[%emt 0:06:04]} 9. d3 {[%emt 0:00:58]} O-O {[%emt 0:00:38]} 10. Ne4 {[%emt 0:01:01]} b6 {[%emt 0:04:17]} 11. h4 {[%emt 0:17:42]} Be6 {[%emt 0:06:29]} 12. Qa4 {[%emt 0:01:03]} Qd7 {[%emt 0:03:48]} 13. Nfg5 {[%emt 0:13:08]} Nd4 {[%emt 0:02:53]} 14. Qd1 {[%emt 0:00:02]} Bg4 {[%emt 0:12:50]} 15. f3 {[%emt 0:04:36]} Bf5 {[%emt 0:01:24]} 16. Nf2 {[%emt 0:00:43]} h6 {[%emt 0:01:24]} 17. Ngh3 {[%emt 0:00:19]} Rad8 {[%emt 0:06:59]} 18. g4 Be6 19. e3 Nc6 20. Nf4 Nd5 21. Nxe6 Qxe6 1/2-1/2

[Event "POL-chT DMP Ekstraliga 2019"]
[Site "Katowice"]
[Date "2019.08.31"]
[Round "4.6"]
[White "Cyfka, Karina"]
[Black "Majdan, Joanna"]
[Result "1/2-1/2"]
[ECO "D27"]
[WhiteElo "2413"]
[BlackElo "2368"]
[Annotator "NA"]
[PlyCount "38"]
[EventDate "2019.08.28"]
[EventType "team-tourn"]
[EventCountry "POL"]
[SourceTitle "playchess.com"]
[Source "ChessBase"]
[SourceQuality "1"]
[TimeControl "40/5400+30:1800+30"]

1. Nf3 {[%emt 0:00:00]} d5 {[%emt 0:00:44]} 2. d4 {[%emt 0:00:31]} Nf6 {[%emt 0:00:09]} 3. c4 {[%emt 0:01:24]} dxc4 {[%emt 0:01:47]} 4. e3 {[%emt 0:03:35]} e6 {[%emt 0:00:59]} 5. Bxc4 {[%emt 0:01:14]} c5 {[%emt 0:00:36]} 6. O-O {[%emt 0:02:09]} a6 {[%emt 0:02:12]} 7. b3 {[%emt 0:04:50]} cxd4 {[%emt 0:04:21]} 8. Nxd4 {[%emt 0:04:45]} Be7 {[%emt 0:07:11]} 9. Bb2 {[%emt 0:05:25]} O-O {[%emt 0:02:03]} 10. Nd2 {[%emt 0:02:14]} b5 {[%emt 0:03:06]} 11. Be2 {[%emt 0:00:23]} Bb7 {[%emt 0:00:05]} 12. a4 {[%emt 0:03:13]} Nc6 {[%emt 0:06:35]} 13. axb5 {[%emt 0:06:48]} Nxd4 {[%emt 0:00:39]} 14. Bxd4 {[%emt 0:00:10]} axb5 {[%emt 0:00:07]} 15. Rxa8 {[%emt 0:00:42]} Qxa8 {[%emt 0:02:52]} 16. Nf3 {[%emt 0:02:13]} b4 {[%emt 0:06:10]} 17. Bc4 {[%emt 0:02:13]} Bd5 {[%emt 0:01:27]} 18. Bxd5 {[%emt 0:01:24]} Qxd5 {[%emt 0:02:45]} 19. Bxf6 {[%emt 0:01:48]} Qxd1 {[%emt 0:01:14]} 1/2-1/2